fUST/lending_fUST_20251024
["ID","MTS","AMOUNT","RATE_DAILY","PERIOD"]
[392197211,1761251437268,-661.0,0.00023799,2]
[392197212,1761251437277,-894.714181,0.0002381,2]
[392197213,1761251437286,-1000.0,0.00023821,2]
[392197214,1761251437295,-500.0,0.00023821,2]
[392197215,1761251437304,-1000.0,0.00023821,2]
[392197216,1761251437313,-1000.0,0.00023821,2]
[392197217,1761251437323,-1000.0,0.00023821,2]
[392197218,1761251437332,-1000.0,0.00023821,2]
[392197219,1761251437341,-1000.0,0.00023821,2]
[392197220,1761251437351,-1000.0,0.00023821,2]
[392197221,1761251437360,-283.58636706,0.00023821,2]
[392197222,1761251437369,-835.9880288,0.00023821,2]
[392197223,1761251437378,-460.0,0.00023844,2]
[392197224,1761251437388,-175.401572,0.00023873,2]
[392197225,1761251437397,-274.667523,0.00023873,2]
[392197226,1761251437406,-175.401572,0.00023975,30]
[392197227,1761251437415,-274.667523,0.00023975,30]
[392197228,1761251437424,-3932.32385,0.00023979,2]
[392197229,1761251437433,-272.4201453,0.00024,7]
[392197230,1761251437442,-3500.0,0.00024,2]
[392197231,1761251437451,-198.8,0.00024,2]
[392197232,1761251437460,-1092.78250784,0.00024042,2]
[392197233,1761251437469,-894.714181,0.00024046,2]
[392197234,1761251437478,-900.0,0.00024078,2]
[392197235,1761251437487,-1141.91077682,0.00024097,2]
[392197236,1761251437496,-8363.0,0.000241,2]
[392197237,1761251437506,-175.401572,0.00024126,5]
[392197238,1761251437515,-274.667523,0.00024126,5]
[392197239,1761251437524,-185445.74540105,0.00024142,2]
[392197850,1761251464960,1228.832791,0.00013699,2]
[392197851,1761251465179,1228.832791,0.00020187,2]
[392197853,1761251501560,500.0,0.00021472,2]
[392197854,1761251501744,500.0,0.00021472,2]
[392197855,1761251502052,165.0,0.00021472,2]
[392197856,1761251515984,500.0,0.00021472,2]
[392197857,1761251516049,478.88384062,0.00021472,2]
[392197858,1761251526769,2832.29926657,0.00021373,2]
[392197859,1761251526792,10000.01,0.00021373,2]
[392197860,1761251526815,10000.01,0.00021373,2]
[392197861,1761251526838,10000.01,0.00021373,2]
[392197862,1761251526860,10000.01,0.00021373,2]
[392197863,1761251526882,10000.01,0.00021373,2]
[392197864,1761251526903,10000.01,0.00021373,2]
[392197865,1761251526926,10000.01,0.00021373,2]
[392197866,1761251526948,10000.01,0.00021373,2]
[392197867,1761251526971,10000.01,0.00021373,2]
[392197868,1761251534331,-5398.98925281,0.00021373,2]
[392197869,1761251536207,-10000.01,0.00021373,2]
[392197870,1761251536337,-10000.01,0.00021373,2]
[392197871,1761251536439,-10000.01,0.00021373,2]
[392197872,1761251536549,-10000.01,0.00021373,2]
[392197873,1761251536884,-10000.01,0.00021373,2]
[392197874,1761251537000,-10000.01,0.00021373,2]
[392197875,1761251537145,-10000.01,0.00021373,2]
[392197876,1761251537251,-10000.01,0.00021373,2]
[392197877,1761251537520,-10000.01,0.00021373,2]
[392197878,1761251539065,-10000.01,0.00021373,2]
[392197879,1761251542284,-10000.01,0.00021373,2]
[392197880,1761251542434,-10000.01,0.00021373,2]
[392197881,1761251542549,-10000.01,0.00021373,2]
[392197882,1761251542662,-10000.01,0.00021373,2]
[392197883,1761251542770,-10000.01,0.00021373,2]
[392197884,1761251542899,-10000.01,0.00021373,2]
[392197885,1761251543087,-10000.01,0.00021373,2]
[392197886,1761251543130,-10000.01,0.00021373,2]
[392197887,1761251543341,-10000.01,0.00021373,2]
[392197890,1761251563180,-299.67644132,0.00021372,2]
[392197891,1761251563212,-165.50027766,0.00021372,2]
[392197892,1761251563242,-560.41120388,0.00021372,2]
[392197893,1761251563270,-187.98038793,0.00021372,2]
[392197894,1761251563298,-162.10625927,0.00021372,2]
[392197895,1761251563396,-7248.66085988,0.00021373,2]
[392197896,1761251563420,-10000.01,0.00021373,2]
[392197897,1761251563439,-10000.01,0.00021373,2]
[392197898,1761251563512,-10000.01,0.00021373,2]
[392197899,1761251563619,-10000.01,0.00021373,2]
[392197900,1761251563740,-10000.01,0.00021373,2]
[392197901,1761251563855,-10000.01,0.00021373,2]
[392197902,1761251563977,-10000.01,0.00021373,2]
[392197904,1761251564097,-4519.70062074,0.00021373,2]
[392197905,1761251565899,960.60875852,0.00021473,2]
[392197906,1761251565921,4039.39124148,0.00021473,2]
[392197907,1761251573796,173.31240285,0.00021372,2]
[392197908,1761251576898,500.0,0.00021372,2]
[392197909,1761251577002,500.0,0.00021372,2]
[392197910,1761251577031,500.0,0.00021372,2]
[392197911,1761251577058,429.61534567,0.00021372,2]
[392197912,1761251577085,354.87122612,0.00021372,2]
[392197913,1761251577112,500.0,0.00021372,2]
[392197914,1761251585805,196.0,0.00016,2]
[392197915,1761251586083,196.0,0.00016045,2]
[392197916,1761251586364,196.0,0.00016089,2]
[392197917,1761251586662,196.0,0.00016134,2]
[392197918,1761251586949,196.0,0.00016179,2]
[392197919,1761251587382,196.0,0.00016223,2]
[392197920,1761251587655,196.0,0.00016268,2]
[392197921,1761251587929,196.0,0.00016313,2]
[392197922,1761251588201,196.0,0.00016357,2]
[392197923,1761251588471,196.0,0.00016402,2]
[392197924,1761251589214,196.0,0.00016447,2]
[392197925,1761251589487,196.0,0.00016491,2]
[392197926,1761251589774,196.0,0.00016536,2]
[392197927,1761251590045,196.0,0.00016581,2]
[392197928,1761251590313,196.0,0.00016626,2]
[392197929,1761251590592,62.81978388,0.0001667,2]
[392197930,1761251590619,133.18021612,0.0001667,2]
[392197931,1761251590892,196.0,0.00016715,2]
[392197932,1761251591173,196.0,0.0001676,2]
[392197933,1761251591203,5000.0,0.00021473,2]
[392197934,1761251591448,196.0,0.00016804,2]
[392197935,1761251591721,327.16229289,0.00021372,2]
[392197936,1761251591747,196.0,0.00016849,2]
[392197937,1761251592006,196.0,0.00016894,2]
[392197938,1761251592287,196.0,0.00016938,2]
[392197939,1761251592573,196.0,0.00016983,2]
[392197940,1761251592939,196.0,0.00017028,2]
[392197941,1761251593136,196.0,0.00017072,2]
[392197942,1761251593416,196.0,0.00017117,2]
[392197943,1761251593725,196.0,0.00017162,2]
[392197944,1761251594015,196.0,0.00017206,2]
[392197945,1761251594292,196.0,0.00017251,2]
[392197946,1761251594566,196.0,0.00017296,2]
[392197947,1761251594847,196.0,0.0001734,2]
[392197948,1761251595122,196.0,0.00017385,2]
[392197949,1761251595401,196.0,0.0001743,2]
[392197950,1761251595681,196.0,0.00017474,2]
[392197951,1761251595964,196.0,0.00017519,2]
[392197952,1761251596378,196.0,0.00017564,2]
[392197953,1761251596683,196.0,0.00017609,2]
[392197954,1761251596956,196.0,0.00017653,2]
[392197955,1761251597230,196.0,0.00017698,2]
[392197956,1761251597782,31.66749099,0.00017743,2]
[392197957,1761251597805,164.33250901,0.00017743,2]
[392197958,1761251597951,196.0,0.00017787,2]
[392197959,1761251598276,196.0,0.00017832,2]
[392197960,1761251598574,196.0,0.00017877,2]
[392197961,1761251598847,196.0,0.00017921,2]
[392197962,1761251599121,196.0,0.00017966,2]
[392197963,1761251599405,196.0,0.00018011,2]
[392197964,1761251599698,196.0,0.00018055,2]
[392197965,1761251600082,344.96952434,0.000181,2]
[392197966,1761251613927,5000.0,0.00021473,2]
[392197967,1761251615747,150.0,0.00019455,2]
[392197968,1761251616146,197.97,0.00020382,2]
[392197969,1761251616560,296.96,0.00021308,2]
[392197970,1761251619996,150.0,0.00017289,30]
[392197971,1761251620384,150.0,0.00018113,30]
[392197972,1761251620785,150.0,0.00018936,30]
[392197973,1761251621182,169.69,0.00019759,30]
[392197974,1761251621592,212.12,0.00020583,30]
[392197975,1761251622067,254.54,0.00021406,30]
[392197976,1761251636312,1387.42796665,0.00021473,2]
[392197977,1761251636335,3612.57203335,0.00021473,2]
[392197978,1761251658511,5000.0,0.00021798,2]
[392197979,1761251667806,500.0,0.00021372,2]
[392197980,1761251667863,500.0,0.00021372,2]
[392197981,1761251667891,500.0,0.00021372,2]
[392197982,1761251667917,422.03684087,0.00021372,2]
[392197983,1761251667948,500.0,0.00021372,2]
[392197984,1761251668002,500.0,0.00021372,2]
[392197985,1761251668801,500.0,0.00021372,2]
[392197986,1761251668950,500.0,0.00021372,2]
[392197987,1761251681719,1077.97315913,0.00021798,2]
[392197988,1761251681742,3922.02684087,0.00021798,2]
[392197989,1761251693587,150.0,0.00019428,2]
[392197990,1761251694007,153.91,0.00020353,2]
[392197991,1761251694409,230.86,0.00021278,2]
[392197992,1761251697369,5543.21315913,0.00021273,2]
[392197993,1761251697392,10000.01,0.00021273,2]
[392197994,1761251697414,10000.01,0.00021273,2]
[392197995,1761251697953,150.0,0.00017292,30]
[392197996,1761251698358,150.0,0.00018115,30]
[392197997,1761251698764,150.0,0.00018939,30]
[392197998,1761251699190,150.0,0.00019762,30]
[392197999,1761251699646,164.9,0.00020585,30]
[392198000,1761251703527,1644.31293363,0.000212,9]
[392198001,1761251703793,-300.0,0.00021272,2]
[392198002,1761251703933,-300.0,0.00021272,2]
[392198003,1761251703963,-300.0,0.00021272,2]
[392198004,1761251703993,-300.0,0.00021272,2]
[392198005,1761251707044,-196.0,0.00016,2]
[392198006,1761251707075,-196.0,0.0001615,2]
[392198007,1761251707107,-196.0,0.000163,2]
[392198008,1761251707138,-196.0,0.0001645,2]
[392198009,1761251707170,-196.0,0.000166,2]
[392198010,1761251707199,-300.0,0.00021272,2]
[392198011,1761251707229,-1200.0,0.00021272,2]
[392198012,1761251707362,-196.0,0.0001675,2]
[392198013,1761251709863,-196.0,0.000169,2]
[392198014,1761251709896,-196.0,0.0001705,2]
[392198015,1761251709928,-196.0,0.000172,2]
[392198016,1761251709959,-196.0,0.0001735,2]
[392198017,1761251709992,-196.0,0.000175,2]
[392198018,1761251710025,-196.0,0.0001765,2]
[392198019,1761251712855,-196.0,0.000178,2]
[392198020,1761251712885,-196.0,0.0001795,2]
[392198021,1761251712915,-340.65314214,0.000181,2]
[392198022,1761251713188,-3857.53292385,0.00021273,2]
[392198023,1761251715884,-395.21084133,0.00021172,2]
[392198024,1761251715914,-225.59,0.00021263,10]
[392198025,1761251715968,-8758.40831734,0.00021273,2]
[392198026,1761251715999,-10000.01,0.00021273,2]
[392198027,1761251718895,-10000.01,0.00021273,2]
[392198028,1761251725126,-10000.01,0.00021273,2]
[392198029,1761251725511,-10000.01,0.00021273,2]
[392198030,1761251725703,5000.0,0.000212,9]
[392198031,1761251725819,-10000.01,0.00021273,2]
[392198032,1761251726018,-10000.01,0.00021273,2]
[392198033,1761251726133,-10000.01,0.00021273,2]
[392198034,1761251726273,-10000.01,0.00021273,2]
[392198035,1761251730933,-451.26,0.00021263,10]
[392198036,1761251730968,-9097.49,0.00021273,2]
[392198037,1761251747949,5000.0,0.000212,9]
[392198038,1761251756743,5000.0,0.000212,9]
[392198040,1761251765137,5000.0,0.000212,9]
[392198041,1761251773426,5000.0,0.000212,9]
[392198042,1761251774947,150.0,0.00012154,30]
[392198043,1761251775357,150.0,0.00012733,30]
[392198044,1761251775760,221.09,0.00013312,30]
[392198045,1761251776163,294.79,0.0001389,30]
[392198046,1761251776565,368.49,0.00014469,30]
[392198047,1761251776960,442.19,0.00015048,30]
[392198048,1761251777359,515.89,0.00015627,30]
[392198049,1761251777767,589.58,0.00016206,30]
[392198050,1761251778195,663.28,0.00016784,30]
[392198051,1761251779158,658.06818002,0.00017363,30]
[392198052,1761251783139,5000.0,0.000212,9]
[392198053,1761251790931,5000.0,0.000212,9]
[392198054,1761251799155,5000.0,0.000212,9]
[392198055,1761251807107,5000.0,0.000212,9]
[392198059,1761251815734,5000.0,0.000212,9]
[392198060,1761251823598,5000.0,0.000212,9]
[392198062,1761251831628,5000.0,0.000212,9]
[392198099,1761251839984,1600.69012418,0.000212,9]
[392198100,1761251848150,5000.0,0.000212,9]
[392198102,1761251852668,150.0,0.00012052,30]
[392198103,1761251853105,150.0,0.00012626,30]
[392198105,1761251853508,157.25,0.000132,30]
[392198106,1761251853918,209.67,0.00013774,30]
[392198107,1761251854359,262.09,0.00014348,30]
[392198108,1761251854769,314.5,0.00014922,30]
[392198109,1761251855307,366.92,0.00015496,30]
[392198110,1761251855599,419.34,0.0001607,30]
[392198111,1761251856000,471.75,0.00016644,30]
[392198112,1761251856038,5000.0,0.000212,9]
[392198113,1761251856394,353.7268808,0.00017218,30]
[392198130,1761251886381,-150.0,0.0001899,2]
[392198131,1761251886403,-89.80448061,0.00019182,2]
[392198132,1761251889995,-60.19551939,0.00019182,2]
[392198133,1761251890021,-141.1309733,0.00019376,2]
[392198134,1761251929286,150.0,0.0001223,30]
[392198135,1761251929676,150.0,0.00012812,30]
[392198136,1761251930193,150.0,0.00013395,30]
[392198137,1761251930538,150.0,0.00013977,30]
[392198138,1761251930939,182.87,0.0001456,30]
[392198139,1761251931331,219.45,0.00015142,30]
[392198140,1761251931739,256.02,0.00015724,30]
[392198141,1761251932135,292.59,0.00016307,30]
[392198142,1761251933038,329.17,0.00016889,30]
[392198145,1761251955105,-150.0,0.00019195,2]
[392198146,1761251955139,-150.0,0.00019389,2]
[392198147,1761251955168,-188.60753102,0.000194,2]
[392198148,1761251955198,-1440.6242909,0.00019667,2]
[392198149,1761251955320,-1440.6242909,0.00019865,2]
[392198150,1761251955349,-410.14279492,0.00019866,2]
[392198151,1761251955380,-170.68,0.00020313,2]
[392198152,1761251955408,-250.0,0.0002079,2]
[392198153,1761251955434,-190.75,0.000212,2]
[392198154,1761251955464,-256.02,0.00021236,2]
[392198155,1761251955493,-329.06218452,0.00021263,10]
[392198156,1761251955658,-46.98781548,0.00021263,10]
[392198157,1761251958001,-300.0,0.0002127,2]
[392198158,1761251964938,5000.0,0.00021271,2]
[392198159,1761251965949,313.38,0.00021263,10]
[392198160,1761251988221,4921.95160865,0.000212,9]
[392198161,1761252005811,150.0,0.0001231,30]
[392198162,1761252006249,150.0,0.00012897,30]
[392198163,1761252006662,150.0,0.00013483,30]
[392198164,1761252007093,150.0,0.00014069,30]
[392198165,1761252007537,150.0,0.00014655,30]
[392198166,1761252007941,150.0,0.00015241,30]
[392198167,1761252008381,173.86,0.00015828,30]
[392198168,1761252008809,166.09232547,0.00016414,30]
[392198170,1761252080250,150.0,0.00011883,30]
[392198171,1761252080650,150.0,0.00012449,30]
[392198172,1761252081053,150.0,0.00013014,30]
[392198173,1761252081461,150.0,0.0001358,30]
[392198174,1761252081854,150.0,0.00014146,30]
[392198177,1761252152512,150.0,0.00011884,30]
[392198178,1761252153315,150.0,0.0001245,30]
[392198179,1761252153430,150.0,0.00013015,30]
[392198183,1761252168439,5000.0,0.00019389,2]
[392198189,1761252190808,5000.0,0.00019389,2]
[392198190,1761252206454,0.01,0.00019389,2]
[392198191,1761252206477,4999.99,0.00019389,2]
[392198192,1761252214278,5000.0,0.00019389,2]
[392198193,1761252220736,0.02,0.00019295,2]
[392198194,1761252220760,149.98,0.00019295,2]
[392198195,1761252224090,150.0,0.0001197,30]
[392198196,1761252224494,150.0,0.0001254,30]
[392198197,1761252224901,150.0,0.0001311,30]
[392198198,1761252237751,5000.0,0.00019389,2]
[392198199,1761252250501,-5000.0,0.0001967,2]
[392198200,1761252253050,-401.93993902,0.00019869,2]
[392198201,1761252253177,-150.0,0.00020214,2]
[392198202,1761252253207,-150.0,0.00021157,2]
[392198203,1761252253236,-300.0,0.00021158,2]
[392198204,1761252253262,-500.0,0.00021159,6]
[392198205,1761252253293,-500.0,0.00021159,6]
[392198206,1761252253320,-500.0,0.00021159,6]
[392198207,1761252253348,-500.0,0.00021159,6]
[392198208,1761252253375,-500.0,0.00021159,6]
[392198209,1761252253403,-1200.0,0.00021185,2]
[392198210,1761252258911,-5000.0,0.0001967,2]
[392198216,1761252270622,-5000.0,0.00019473,2]
[392198218,1761252273622,-500.0,0.00021185,2]
[392198219,1761252273654,-500.0,0.00021185,2]
[392198221,1761252273779,-500.0,0.00021185,2]
[392198222,1761252273807,-500.0,0.00021185,2]
[392198223,1761252273841,-500.0,0.00021185,2]
[392198224,1761252273872,-500.0,0.00021185,2]
[392198225,1761252273903,-500.0,0.00021185,2]
[392198226,1761252273933,-500.0,0.00021185,2]
[392198227,1761252273961,-500.0,0.00021185,2]
[392198228,1761252273992,-500.0,0.00021185,2]
[392198229,1761252274328,-500.0,0.00021185,2]
[392198230,1761252274357,-500.0,0.00021185,2]
[392198231,1761252274388,-285.85814963,0.00021185,2]
[392198232,1761252274417,-500.0,0.00021185,2]
[392198233,1761252274448,-500.0,0.00021185,2]
[392198234,1761252274478,-458.86051778,0.00021185,2]
[392198235,1761252274509,-500.0,0.00021185,2]
[392198236,1761252274541,-500.0,0.00021185,2]
[392198237,1761252274574,-500.0,0.00021185,2]
[392198238,1761252274604,-500.0,0.00021185,2]
[392198239,1761252274643,-10.57266518,0.00021185,2]
[392198245,1761252279977,-489.42733482,0.00021185,2]
[392198246,1761252280007,-500.0,0.00021185,2]
[392198247,1761252280036,-500.0,0.00021185,2]
[392198248,1761252280064,-500.0,0.00021185,2]
[392198249,1761252280093,-500.0,0.00021185,2]
[392198250,1761252280126,-500.0,0.00021185,2]
[392198251,1761252280168,-650.0,0.00021185,2]
[392198253,1761252280212,-500.0,0.00021185,2]
[392198254,1761252280256,-500.0,0.00021185,2]
[392198255,1761252280299,-221.15533036,0.00021185,2]
[392198258,1761252285658,-1245.43097814,0.00020973,2]
[392198259,1761252285993,-2490.86195628,0.00020973,2]
[392198260,1761252288704,-4981.72391256,0.00020973,2]
[392198261,1761252288836,-36.56217488,0.00020973,2]
[392198262,1761252288865,-278.84466964,0.00021185,2]
[392198263,1761252288894,-500.0,0.00021185,2]
[392198264,1761252288923,-500.0,0.00021185,2]
[392198265,1761252288951,-500.0,0.00021185,2]
[392198266,1761252288980,-500.0,0.00021185,2]
[392198267,1761252289010,-500.0,0.00021185,2]
[392198268,1761252289039,-500.0,0.00021185,2]
[392198269,1761252289067,-500.0,0.00021185,2]
[392198270,1761252289096,-500.0,0.00021185,2]
[392198271,1761252289125,-500.0,0.00021185,2]
[392198272,1761252291706,-500.0,0.00021185,2]
[392198273,1761252291737,-500.0,0.00021185,2]
[392198274,1761252291765,-500.0,0.00021185,2]
[392198275,1761252291793,-500.0,0.00021185,2]
[392198276,1761252291822,-500.0,0.00021185,2]
[392198277,1761252291852,-500.0,0.00021185,2]
[392198278,1761252291882,-500.0,0.00021185,2]
[392198279,1761252291913,-500.0,0.00021185,2]
[392198280,1761252291941,-500.0,0.00021185,2]
[392198281,1761252291970,-500.0,0.00021185,2]
[392198282,1761252294688,-150.0,0.00019101,2]
[392198283,1761252294720,-150.0,0.00019294,2]
[392198284,1761252294750,-243.55,0.00020213,2]
[392198285,1761252294779,-365.32,0.00021132,2]
[392198286,1761252294808,-500.0,0.00021185,2]
[392198287,1761252294841,-500.0,0.00021185,2]
[392198288,1761252294969,-500.0,0.00021185,2]
[392198289,1761252295000,-500.0,0.00021185,2]
[392198290,1761252295029,-500.0,0.00021185,2]
[392198291,1761252295059,-500.0,0.00021185,2]
[392198292,1761252295089,-500.0,0.00021185,2]
[392198293,1761252295121,-500.0,0.00021185,2]
[392198294,1761252296287,150.0,0.00012426,30]
[392198295,1761252296679,150.0,0.00013018,30]
[392198296,1761252297101,156.57,0.00013609,30]
[392198297,1761252297580,208.76,0.00014201,30]
[392198298,1761252297945,-500.0,0.00021185,2]
[392198299,1761252297975,-500.0,0.00021185,2]
[392198300,1761252298003,-500.0,0.00021185,2]
[392198301,1761252298033,-500.0,0.00021185,2]
[392198302,1761252298063,-500.0,0.00021185,2]
[392198303,1761252298092,-500.0,0.00021185,2]
[392198304,1761252298122,-500.0,0.00021185,2]
[392198305,1761252298150,-500.0,0.00021185,2]
[392198306,1761252298182,-500.0,0.00021185,2]
[392198307,1761252298212,-374.75966408,0.00021185,2]
[392198308,1761252298292,260.94,0.00014793,30]
[392198309,1761252298460,313.13,0.00015384,30]
[392198310,1761252298852,365.32,0.00015976,30]
[392198311,1761252299269,417.51,0.00016568,30]
[392198312,1761252299790,469.7,0.0001716,30]
[392198313,1761252300100,350.24019376,0.00017751,30]
[392198314,1761252300704,-250.49067184,0.00021185,2]
[392198315,1761252300732,-500.0,0.00021185,2]
[392198316,1761252300759,-447.04671389,0.00021185,2]
[392198317,1761252300787,-500.0,0.00021185,2]
[392198318,1761252300816,-500.0,0.00021185,2]
[392198319,1761252300851,-500.0,0.00021185,2]
[392198320,1761252303750,-300.0,0.00021184,2]
[392198321,1761252303780,-300.0,0.00021184,2]
[392198322,1761252303809,-300.0,0.00021184,2]
[392198323,1761252303842,-300.0,0.00021184,2]
[392198324,1761252303873,-300.0,0.00021184,2]
[392198325,1761252303903,-1200.0,0.00021184,2]
[392198326,1761252304026,-3481.08185443,0.00021186,2]
[392198327,1761252306730,-196.0,0.00016,2]
[392198328,1761252306759,-196.0,0.00016263,2]
[392198329,1761252306789,-196.0,0.00016525,2]
[392198330,1761252306867,-8824.01,0.00021186,2]
[392198331,1761252309061,5000.0,0.000212,9]
[392198332,1761252309917,-196.0,0.00016788,2]
[392198333,1761252309948,-196.0,0.0001705,2]
[392198334,1761252309979,-196.0,0.00017313,2]
[392198335,1761252310008,-196.0,0.00017575,2]
[392198336,1761252310038,-196.0,0.00017838,2]
[392198337,1761252310067,-269.59310985,0.000181,2]
[392198338,1761252317342,1141.80034382,0.000212,9]
[392198339,1761252332777,4454.78668724,0.000212,9]
[392198348,1761252370685,214.66,0.00019304,2]
[392198353,1761252392156,150.0,0.00012823,30]
[392198354,1761252392774,183.99,0.00013434,30]
[392198355,1761252392875,275.99,0.00014045,30]
[392198356,1761252393042,367.99,0.00014655,30]
[392198357,1761252393423,459.99,0.00015266,30]
[392198358,1761252393837,551.98,0.00015876,30]
[392198359,1761252394252,643.98,0.00016487,30]
[392198360,1761252394658,735.98,0.00017098,30]
[392198361,1761252395065,827.98,0.00017708,30]
[392198362,1761252395484,861.98742751,0.00018319,30]
[392198373,1761252463949,150.0,0.00019299,2]
[392198374,1761252467995,150.0,0.00012664,30]
[392198375,1761252468423,150.0,0.00013267,30]
[392198376,1761252468923,189.68,0.0001387,30]
[392198377,1761252469329,252.91,0.00014473,30]
[392198379,1761252469781,316.14,0.00015076,30]
[392198380,1761252470230,379.36,0.00015679,30]
[392198381,1761252470635,442.59,0.00016282,30]
[392198382,1761252471030,505.82,0.00016885,30]
[392198383,1761252471425,569.05,0.00017488,30]
[392198384,1761252471810,519.49,0.00018091,30]
[392198397,1761252515169,306.2931045,0.000212,9]
[392198400,1761252540319,150.0,0.00019304,2]
[392198401,1761252544475,150.0,0.00012737,30]
[392198402,1761252544882,150.0,0.00013344,30]
[392198403,1761252545285,150.0,0.0001395,30]
[392198404,1761252545898,173.82,0.00014557,30]
[392198405,1761252546104,217.27,0.00015163,30]
[392198406,1761252546493,260.73,0.0001577,30]
[392198407,1761252546918,304.18,0.00016376,30]
[392198430,1761252547388,347.63,0.00016983,30]
[392198439,1761252547795,391.09,0.0001759,30]
[392198440,1761252548214,196.66,0.00018196,30]
[392198512,1761252572247,-5000.0,0.00019922,2]
[392198513,1761252578173,-194.47774016,0.00020123,2]
[392198514,1761252578204,-394.08316445,0.00020171,2]
[392198515,1761252578235,-2015.457842,0.0002022,2]
[392198516,1761252578268,-202.79,0.00020224,2]
[392198517,1761252578298,-300.0,0.00020269,2]
[392198518,1761252578464,-3283.60250678,0.0002027,2]
[392198519,1761252581168,-801.48506188,0.0002027,2]
[392198520,1761252581203,-300.0,0.00020674,2]
[392198521,1761252581238,-300.0,0.00020674,2]
[392198522,1761252581268,-300.0,0.00020674,2]
[392198523,1761252581298,-300.0,0.00020674,2]
[392198524,1761252581328,-300.0,0.00020674,2]
[392198525,1761252581358,-300.0,0.00020674,2]
[392198526,1761252581388,-300.0,0.00020674,2]
[392198527,1761252581419,-300.0,0.00020674,2]
[392198528,1761252581450,-300.0,0.00020674,2]
[392198529,1761252581607,-300.0,0.00020674,2]
[392198530,1761252581637,-300.0,0.00020674,2]
[392198531,1761252581667,-300.0,0.00020674,2]
[392198532,1761252581701,-300.0,0.00020674,2]
[392198533,1761252581730,-297.03987624,0.00020674,2]
[392198534,1761252581983,-2.96012376,0.00020674,2]
[392198535,1761252584333,-194.47774016,0.00019922,2]
[392198536,1761252584360,-4433.23885132,0.00020674,2]
[392198537,1761252584396,-744.57681704,0.00020674,2]
[392198538,1761252587225,-300.0,0.00020674,2]
[392198539,1761252609274,300.0,0.000199,2]
[392198540,1761252616415,150.0,0.00019302,2]
[392198541,1761252617320,161.19,0.00020221,2]
[392198542,1761252619717,300.0,0.000199,2]
[392198543,1761252622823,150.0,0.00012213,30]
[392198544,1761252623218,150.0,0.00012795,30]
[392198545,1761252623625,150.0,0.00013377,30]
[392198546,1761252624022,150.0,0.00013958,30]
[392198547,1761252624414,172.71,0.0001454,30]
[392198548,1761252624873,207.25,0.00015121,30]
[392198549,1761252625279,241.79,0.00015703,30]